Cogmind - Beta 15 @@@ ROGUE MODE // 2025.07.06 @ 11:01:06 Player: daxter767676 Result: Destroyed by 6X-S79(R) with Subdweller Machine Gun Performance ------------- Evolutions (0) 0 Regions Visited (3) 600 Robots Destroyed (19) 95 Value Destroyed (420) 420 Prototype IDs (0) 0 Alien Tech Used (0) 0 Bonus (115) 115 TOTAL SCORE: 1230 Bonus ------- Follower Combat Kills 120 Friendly Fire -5 Cogmind --------- Core Integrity 0/250 Matter 275/300 Energy 263/265 System Corruption 0% Temperature Cool (0) Movement Rolling (95) Ox1 Location -10/Subcaves Parts ------- > --- POWER (1) -------- Improved Ion Engine > --- PROPULSION (2) --- Wheel Wheel > --- UTILITY (2) ------ Scrap Shield > --- WEAPON (2) ------- Barrage Gun Makeshift Axe > --- INVENTORY (5) ---- Makeshift Leg High-capacity Battery (250) Structural Scanner Improved Terrain Scanner Subdweller Shrapnel Launcher Peak State ------------ > --- POWER ------------ Improved Ion Engine > --- PROPULSION ------- Wheel Wheel > --- UTILITY ---------- Scrap Shield > --- WEAPON ----------- Barrage Gun Makeshift Axe > --- INVENTORY -------- Makeshift Leg Makeshift Flight Unit High-capacity Battery Structural Scanner Improved Terrain Scanner [Rating: 16] Favorites ----------- Power Light Ion Engine Engine Light Ion Engine Propulsion Wheel Leg Aluminum Leg Wheel Wheel Flight Unit Flight Unit Utility Improved Terrain Scanner Device Improved Terrain Scanner Storage Small Storage Unit Protection Scrap Shield Weapon Barrage Gun Energy Gun Small Laser Energy Cannon Subdweller Beam Cannon Ballistic Gun Barrage Gun Ballistic Cannon Battle Cannon Launcher Grenade Launcher Special Weapon Mining Laser Slashing Weapon Makeshift Axe Build | -11 -10 -10 -10 ------- Run | Yrd Mat Min Sub Slots Evolved . | . . . . Power . | . . . . Propulsion . | . . . . Utility . | . . . . Weapon . | . . . . Parts Attached 33 | 8 3 5 17 Power 6 | 1 1 2 2 Engine 6 | 1 1 2 2 Core . | . . . . Reactor . | . . . . Propulsion 14 | 3 2 1 8 Treads . | . . . . Leg 2 | . . . 2 Wheel 8 | 3 . . 5 Hover . | . . . . Flight 4 | . 2 1 1 Utility 4 | 2 . 1 1 Device 3 | 2 . 1 . Storage . | . . . . Processor . | . . . . Hackware . | . . . . Protection 1 | . . . 1 Artifact . | . . . . Weapon 9 | 2 . 1 6 Energy Gun . | . . . . Energy Cannon 1 | . . . 1 Ballistic Gun 4 | 1 . 1 2 Ballistic Cannon 1 | . . . 1 Launcher 1 | . . . 1 Special Weapon 1 | 1 . . . Impact Weapon . | . . . . Slashing Weapon 1 | . . . 1 Piercing Weapon . | . . . . Special Melee Weapon . | . . . . Unidentified Prototypes . | . . . . Parts Lost 10 | . . 3 7 Power 2 | . . 1 1 Propulsion 3 | . . . 3 Utility 1 | . . 1 . Weapon 4 | . . 1 3 Highest Loss Streak 4 | . . 3 4 To Critical Strikes . | . . . . Average Backups 4 | 5 5 4 4 Power . | 1 . 1 . Propulsion 1 | 4 1 1 1 Utility 1 | . 1 1 1 Weapon . | . . 1 . Tool/Special . | . . . . Unused Backups 21 | 7 5 . 9 Power 2 | . 2 . . Propulsion 12 | 4 3 . 5 Utility 3 | 1 . . 2 Weapon 4 | 2 . . 2 Tool/Special . | . . . . Average Slot Usage (%) 92 | . 100 91 91 Engine 11 | . 14 12 11 Leg 4 | . . . 5 Wheel 14 | . 17 . 15 Flight 8 | . 10 28 6 Device 20 | . 28 24 19 Protection 3 | . . . 4 Ballistic Gun 14 | . 14 21 13 Ballistic Cannon 3 | . . . 4 Launcher 3 | . . . 3 Special Weapon 1 | . 14 3 . Slashing Weapon 4 | . . . 5 Peak Build Rating 16 | 9 9 9 16 Average Rating 11 | 7 8 8 12 On Entrance 8 | 6 9 9 9 Naked Turns . | . . . . Heaviest Build 31 | 14 8 8 31 Greatest Support 26 | 26 26 8 20 Greatest Overweight (x) 2 | 1 2 . 1 Average Overweight (x) . | . . . . Largest Inventory Capacity 8 | 8 5 5 5 Average Capacity 5 | 6 5 5 5 Most Carried 8 | 8 5 5 5 Average Carried 4 | 5 4 4 4 Final Capacity 5 | 5 5 5 5 Final Carried 5 | 5 5 5 5 Class Distribution -------------------- 62% | Mutant 37% | Scavenger-Mutant Dominant Class ---------------- Scavenger-Mutant | -10/Materials Scavenger-Mutant | -10/Mines Mutant | -10/Subcaves Resources | -11 -10 -10 -10 ----------- Run | Yrd Mat Min Sub Matter Collected 946 | 279 31 65 571 Remotely . | . . . . Salvage Created 573 | 207 31 26 309 Parts 33 | 11 4 5 13 Haulers Intercepted . | . . . . Recyclers Shooed . | . . . . Parts Field Recycled . | . . . . Retrieved Matter . | . . . . Parts Self-Destructed 12 | . . . 12 Prevented . | . . . . Kills | -11 -10 -10 -10 ------- Run | Yrd Mat Min Sub Combat Hostiles Destroyed 14 | . 3 3 8 Guns 9 | . 2 3 4 Cannons 1 | . 1 . . AOE 4 | . . . 4 Classes Destroyed 6 | 2 1 . 3 Tunneler 4 | 4 . . . Recycler 1 | 1 . . . Swarmer 6 | . 3 3 . Grunt 2 | . . . 2 Sentry 1 | . . . 1 Subdweller 5 | . . . 5 Best Kill Streak 4 | 2 2 2 4 Combat Bots Only 4 | . 2 2 4 Max Kills in Single Turn 2 | 1 1 1 2 Gunslinging . | . . . . Exploded 2 | . . . 2 Melee . | . . . . Uniques/NPCs Destroyed . | . . . . Combat | -11 -10 -10 -10 -------- Run | Yrd Mat Min Sub Hostile Shots Fired 120 | . 11 38 71 Missed 35 | . 4 12 19 Hits 85 | . 7 26 52 Projectile 85 | . 7 26 52 Critical Strikes 1 | . . . 1 Damage Taken 1222 | . 50 206 966 Core 266 | . 6 39 221 Absorbed by Shields . | . . . . Core Remaining (%) 100 | 100 . . . Volleys Fired 70 | 13 5 15 37 Largest 2 | 2 2 2 2 Hottest 120 | 120 120 120 63 Shots Fired 120 | 24 9 19 68 Gun 84 | 23 5 15 41 Cannon 11 | . . . 11 Launcher 16 | . . . 16 Special 9 | 1 4 4 . Kinetic 75 | 3 5 15 52 Thermal 29 | 21 4 4 . Explosive 16 | . . . 16 Electromagnetic . | . . . . Robot Hit Streak 15 | 7 2 2 15 Robot Miss Streak 3 | 2 3 2 3 Penetration Max . | . . . . Secondary Targets . | . . . . Shots Hit Robots 70 | 18 3 11 38 Core Hits 31 | 6 3 3 19 Critical Kills . | . . . . Critical Parts Destroyed 1 | . . . 1 Critical Strikes 3 | 1 . . 2 Burn 1 | 1 . . . Destroy 1 | . . . 1 Blast 1 | . . . 1 Melee Attacks 6 | . . . 6 Impact . | . . . . Slashing 6 | . . . 6 Piercing . | . . . . Sneak Attacks . | . . . . Combat Hostiles . | . . . . Follow-up Attacks . | . . . . Damage Inflicted 1671 | 214 49 154 1254 Guns 689 | 214 25 130 320 Cannons 91 | . . . 91 Explosions 668 | . . . 668 Melee 175 | . . . 175 Ramming . | . . . . Kinetic 589 | 23 25 130 411 Thermal 239 | 191 24 24 . Explosive 668 | . . . 668 Electromagnetic . | . . . . Impact . | . . . . Slashing 175 | . . . 175 Piercing . | . . . . Highest Corruption . | . . . . Average Corruption . | . . . . Corruption Purged . | . . . . Corruption Blocked . | . . . . Overload Shots . | . . . . Overflow Damage . | . . . . Projectiles . | . . . . Explosions . | . . . . Melee . | . . . . Knockbacks 1 | . . . 1 Impact . | . . . . Kinetic 1 | . . . 1 Secondary . | . . . . Self-Inflicted Damage 108 | . . . 108 Shots 6 | . . . 6 Rammed . | . . . . Targets Rammed . | . . . . Kicked . | . . . . Crushed . | . . . . Highest Temperature 150 | 150 60 52 . Average Temperature 42 | 63 27 17 . Received Heat Transfer 297 | . . . 297 Siege Activations . | . . . . Martial Activations . | . . . . Shielding Activations . | . . . . Robots Disrupted . | . . . . Combat Hostiles . | . . . . Robots Corrupted . | . . . . Combat Hostiles . | . . . . Parts Fried . | . . . . Impact Corruptions . | . . . . Robots Melted . | . . . . Combat Hostiles . | . . . . Parts Melted 4 | 4 . . . Heat Transferred 658 | 558 50 50 . Parts Sabotaged . | . . . . Parts Stolen . | . . . . Parts Stripped . | . . . . Power Chain Reactions . | . . . . Alert | -11 -10 -10 -10 ------- Run | Yrd Mat Min Sub Maximum Alert Level . | . . . . Low Security (%) 100 | 100 100 100 . Level 1 . | . . . . Level 2 . | . . . . Level 3 . | . . . . Level 4 . | . . . . Level 5 . | . . . . High Security . | . . . . Max Security . | . . . . Peak Influence 70 | 5 70 49 . Initial 19 | . . 19 . Average 19 | 2 28 23 . Influence Increases 264 | 25 94 71 74 Destroy 0b10 Robot/C 180 | . 60 60 60 Destroy 0b10 Robot/NC 25 | 25 . . . Destroy Leader 30 | . 10 10 10 Allied During Kill 4 | . . . 4 Successful Hack 8 | . 8 . . Destroy Structure 2 | . 1 1 . Lose Combat Pursuer 15 | . 15 . . Influence Decreases 264 | 25 44 121 74 Entered New Map 31 | . . 31 . Time Decay 203 | 25 44 60 74 Lost Part 30 | . . 30 . Squads Dispatched . | . . . . Investigation . | . . . . Extermination . | . . . . Reinforcement . | . . . . Assault . | . . . . Garrison . | . . . . Intercept . | . . . . Searches Triggered . | . . . . Construction Impeded . | . . . . Haulers Reinforced . | . . . . Active Scanning Responses . | . . . . Cargo Convoy Interrupts . | . . . . Stealth | -11 -10 -10 -10 --------- Run | Yrd Mat Min Sub Distress Signals . | . . . . Communications Jammed . | . . . . Distress Signals . | . . . . Times Spotted 24 | . 5 3 16 Peak Tracking Total 5 | . 4 3 5 Tactical Retreats 2 | . 1 . 1 Traps | -11 -10 -10 -10 ------- Run | Yrd Mat Min Sub Traps Triggered . | . . . . Indirectly . | . . . . Trap Hack Attempts . | . . . . Triggered . | . . . . Disarmed . | . . . . Reprogrammed . | . . . . Reused . | . . . . Traps Extracted . | . . . . Installed . | . . . . Triggered . | . . . . Machines | -11 -10 -10 -10 ---------- Run | Yrd Mat Min Sub Machines Disabled . | . . . . Max in Single Turn . | . . . . Machines Repaired . | . . . . Machines Dismantled . | . . . . Machines Sabotaged . | . . . . Overloaded Fab Kills . | . . . . Hacking | -11 -10 -10 -10 --------- Run | Yrd Mat Min Sub Machines Accessed 5 | . 3 . 2 Terminals 3 | . 3 . . Fabricators . | . . . . Repair Stations . | . . . . Recycling Units . | . . . . Scanalyzers . | . . . . Garrison Access . | . . . . Total Hacks 10 | . 8 . 2 Successful 7 | . 5 . 2 Failed 3 | . 3 . . Catastrophic 2 | . 2 . . Database Lockouts . | . . . . Manual 2 | . 2 . . Terminals 8 | . 8 . . Fabricators . | . . . . Repair Stations . | . . . . Recycling Units . | . . . . Scanalyzers . | . . . . Garrison Access . | . . . . Terminal Hacks 5 | . 3 . 2 Record 1 | . 1 . . Open Door 1 | . . . 1 Locate Traps 1 | . 1 . . Maintenance Status 1 | . 1 . . Release Object 1 | . . . 1 Fabricator Hacks . | . . . . Repair Station Hacks . | . . . . Recycling Unit Hacks . | . . . . Scanalyzer . | . . . . Garrison Access Hacks . | . . . . Unauthorized Hacks 2 | . 2 . . Terminals 2 | . 2 . . Skim 2 | . 2 . . Fabricators . | . . . . Repair Stations . | . . . . Recycling Units . | . . . . Scanalyzers . | . . . . Garrison Access . | . . . . Data Cores Recovered . | . . . . Used . | . . . . Hacking Detections 3 | . 3 . . Full Trace Events . | . . . . Feedback Events . | . . . . Feedback Blocked . | . . . . Robot Schematics Acquired . | . . . . Robots Built . | . . . . Authchips . | . . . . Time . | . . . . Total Robot Build Rating . | . . . . Part Schematics Acquired . | . . . . Parts Built . | . . . . Authchips . | . . . . Time . | . . . . Total Part Build Rating . | . . . . Parts Repaired . | . . . . Time . | . . . . Parts Recycled . | . . . . Recycled Matter . | . . . . Retrieved Matter . | . . . . Retrieved Components . | . . . . Parts Scanalyzed . | . . . . Part Schematics Acquired . | . . . . Parts Damaged . | . . . . Bothacking | -11 -10 -10 -10 ------------ Run | Yrd Mat Min Sub Used RIF Installer . | . . . . Robots Hacked . | . . . . Non-combat . | . . . . Combat . | . . . . Robot Hacks Applied . | . . . . Relay Couplers Released . | . . . . Fabnet Peak Effective % . | . . . . Robots Rewired . | . . . . Allies Hacked . | . . . . Hacks Repelled . | . . . . Allies | -11 -10 -10 -10 -------- Run | Yrd Mat Min Sub Total Allies 2 | . . 2 . Largest Group 2 | . . 2 2 Highest-Rated Group 43 | . . 43 43 Highest-Rated Ally 31 | . . 31 31 Total Orders . | . . . . Ally Attacks 16 | . . . 16 Total Damage 246 | . . . 246 Kills 4 | . . . 4 Allies Corrupted . | . . . . Allies Melted . | . . . . Intel | -11 -10 -10 -10 ------- Run | Yrd Mat Min Sub Active Infowar (turns) 1393 | 64 147 141 1041 Terrain 1393 | 64 147 141 1041 Structural 1126 | . . 88 1038 Seismic 199 | 48 147 4 . Robot Analysis Total . | . . . . Derelict Logs Recovered 3 | . . 2 1 Drone Launches . | . . . . Drone Recoveries . | . . . . Exploration | -11 -10 -10 -10 ------------- Run | Yrd Mat Min Sub Turns Passed 1918 | 118 147 141 1512 Spaces Moved 1862 | 53 179 84 1546 Core 10 | . 1 . 9 Treads . | . . . . Legs 349 | 17 . . 332 Wheels 691 | 36 78 . 577 Hover . | . . . . Flight 812 | . 100 84 628 Fastest Speed 37 | 80 37 37 37 Average Speed 79 | 96 60 37 83 Slowest Speed 190 | 120 150 37 190 Overloaded Moves . | . . . . Propulsion Burnouts . | . . . . Robots Hopped 1 | . 1 . . Potential Cave-ins . | . . . . Cave-ins Triggered . | . . . . Exploration Rate (%) 33 | 3 35 23 74 Regions Visited 3 Branch Regions 2 Pre-discovered Areas 3 | . . 2 1 Known Exits Taken . | . . . . Unknown Exits Taken 3 | 1 1 1 . Scrap Searched 6 | . . 1 5 Spaces Dug . | . . . . Terrain Destroyed 57 | . . 1 56 Melee . | . . . . Projectile 1 | . . 1 . AOE 56 | . . . 56 Terrain Rammed . | . . . . Walls Destroyed . | . . . . Machines Disabled . | . . . . Actions | -11 -10 -10 -10 --------- Run | Yrd Mat Min Sub Total 2171 | 94 201 166 1710 Wait 121 | 10 3 58 50 Move 1857 | 52 176 83 1546 Hop 1 | . 1 . . Pick Up 25 | 2 5 2 16 Fast Attach 18 | 7 2 2 7 Attach 10 | . . 1 9 Detach 7 | 3 . . 4 Swap 16 | 1 1 2 12 Drop 38 | 6 8 3 21 Fire 70 | 13 5 15 37 Melee 6 | . . . 6 Ram . | . . . . Kick . | . . . . Crush . | . . . . Escape Stasis . | . . . . Rewire . | . . . . Trap . | . . . . Miscellaneous 2 | . . . 2 Route ------- -11/Scrapyard -10/Materials (discovered 2 exits: [*Mat] / [*Min]) -10/Mines -10/Subcaves History --------- Turn | Location | Event 16 | -11/Scrapyard | Discovered new exit (range 3) 119 | -11/Scrapyard | Entered Materials 240 | -10/Materials | Discovered new exit (range 14) 248 | -10/Materials | Discovered new exit (range 16) 266 | -10/Materials | Entered Mines 328 | -10/Mines | Lost 3 parts (1p1u1w) 339 | -10/Mines | Learned Materials terminal intel 351 | -10/Mines | Learned location of Storage (-7) 351 | -10/Mines | Build established: Scavenger-Mutant 355 | -10/Mines | Learned location of Zion (-6) 374 | -10/Mines | Discovered new exit (range 4) 407 | -10/Mines | Entered Subcaves 407 | -10/Subcaves | Accompanied by 2 allies 408 | -10/Subcaves | Approached by a straggling Scientist 412 | -10/Subcaves | Led the pair of lost Derelicts to an unsafe place 446 | -10/Subcaves | Shifting Twisted Machinery released Sub. Power Source 448 | -10/Subcaves | Shifting Twisted Machinery released Sub. Optics 494 | -10/Subcaves | Shifting Twisted Machinery released Sub. Machine Gun 495 | -10/Subcaves | Shifting Twisted Machinery released Battle Rifle 732 | -10/Subcaves | Core integrity fell below 50% 756 | -10/Subcaves | Core integrity fell below 20% 770 | -10/Subcaves | Lost 4 parts (1p2n1w) 957 | -10/Subcaves | Ambushed by Subdwellers from Twisted Machinery 1043 | -10/Subcaves | Build established: Mutant 1156 | -10/Subcaves | Released subatomizers from SUBCON Basin 1501 | -10/Subcaves | A swath of the cavern ceiling suddenly collapsed 1919 | -10/Subcaves | Destroyed by 6X-S79(R) with Subdweller Machine Gun Last Messages --------------- collapses. 01542_ Dropped Scrap Shield. 01544_ Acquired Scrap Shield. 01608_ Dropped Mak. Flight Unit. 01609_ Acquired Mak. System Shield. 01623_ Dropped Mak. System Shield. 01625_ Acquired Sub. Shrapnel Launcher. 01631_ Dropped Structural Scanner. 01632_ Dropped Imp. Terrain Scanner. 01633_ Acquired Structural Scanner. 01637_ Acquired Imp. Terrain Scanner. 01640_ Scrap Shield Fragment affixed to Scrap Shield (+28). 01653_ Subatomizers dissect the Disposable Heat Sink. 01655_ Acquired 7 matter. 01667_ Subatomizers dissect the Disposable Heat Sink. 01690_ Acquired 15 matter. 01745_ Acquired 6 matter. Map ----- +----------------------------------------------------+ | ?????????## ??###### #### """ ##?????? | | ?????? ?### ??## ##### ""#"""###?????? | | ????????### ?### ### ###""#" ###?????? | | ## ????### ### ## #### ###" " ##??????? | | ### ?##### #### ### ##### #### # #??????# | | ##"##### ### ### #####??####### ???????? | | " ""### ######?? ## ???????? | | """?## ###???#???????? ???????? | | """"## ######?????????????????????? | | """"#?? ### #######???#?????????????????? | | """#####??#### ### ###?## # ???????????????? | | #########???### ##?# ????????????????? | | ##### ######### ###?# ???????????????? | | #### ####### ####?# ????????????????? | | ### ## ###?## ????????????????? | | ## #####??# #???####?????????? | | ### ######## ##??# ##????????? | | ### ### #??# ##???????? | | ## ## ####### ##?# #### ####????? | | ### ############# ###??# ## #????? | | #### ########????# ###???# #?????? | | ########?????????## ##????# #???###? | | #######?????????## ##??## #### #? | | ##????????????### #### ## #? | | ##??????????### ## #? | | #????????????# @R ############# #? | | ?????????????# ### ##??????????# #? | | ?????????????# ###### #??????????## #? | | ?????????????# ###??## #??????????## #? | | ??????#??????## ##????# ##?????????## #? | | ??????????????## #????## #?????????## ###? | | ???????????????## ##??## #??????#### #??? | | ????????????????# ##?# ##?????# ##??? | | ????????????????# ### #?????## ##### | | ????????????????# ##?????##### # | | ????????????????# ######???## # | | ????????????????# ## ## ##### ## # | | ????????????????# ### ### ##? # | | ????????????????## #### #### ##?? ## | | ?????????????????### #?# ##????##? | | ??????????????????## ## ##?# ## #???????? | | ?????????????????## ######??######## ##???????? | | ?????????????????# #??????????????####????????? | | ?????????????????# ##?????????????????????????? | | ????????????????## #?????????????????????????? | | ???????????????## #?????????????????????????? | | ??????????????## ### #?????????????????????????? | | ?????????????## #?## #????????????????????????? | | ####?????????# #???# ???????????????????????? | | ##????????# #???? ??????????????????????? | +----------------------------------------------------+ Best States ------------- Heat Dissipation 25 Energy Generation 15 Energy Capacity 265 Matter Stores 300 Matter Capacity 300 Sight Range 16 Terrain Scan Range 16 Terrain Scan Density 10 Armor Coverage 800 Evasion (%) 62 Item Schematics ----------------- None Robot Schematics ------------------ None Fabricated ------------ Nothing Repaired ---------- Nothing Alien Tech Used ----------------- None Achievements -------------- None Challenges ------------ None Game ------ Seed ControlXenonBoregun Manual? 0 Play Time 00:38:29 Cumulative 134.3 hours Start 2025.07.06 @ 10:17:57 End 2025.07.06 @ 11:01:06 Sessions 1 Manual Loads 0 Difficulty Rogue Special Mode None Game No. 135 Rogue 133 Adventurer 2 Explorer 0 Win Type - Total 0 Types 0/0/0/0/0/0/0/0/0/0 Lore% 57 Gallery% 54 Achievement% 44 Wizard Run 0 Options --------- Layout 2 ASCII 0 Keyboard 1 Movement Vi Keybinds 0 Fullscreen 2 Font 48/Smallcaps Map View 50x66 Zoom Use 27% Tactical HUD 1 Map Filters NONE Filters NONE Steam 1 RUN: 92fdb3fc-6157-4f0a-8154-e8e7c9e389fa